bitfinex/quotes_ETHUSD_20240816
["timestamp","ask_amount","ask_price","bid_price","bid_amount"]
[1723839076265,3.80967,2624.9,2624.4,0.10216187]
[1723839076953,7.61943,2624.9,2624.4,0.10216187]
[1723839077288,3.80967,2624.9,2624.4,0.10216187]
[1723839078857,7.61941,2624.9,2624.4,0.10216187]
[1723839079069,7.61941,2624.9,2624.5,2.3921]
[1723839079284,3.80984,2624.8,2624.5,2.3921]
[1723839079584,3.0,2625.1,2624.6,0.10190817]
[1723839079793,7.61954,2624.9,2624.6,0.10190817]
[1723839080390,3.80981,2624.8,2624.6,0.10190817]
[1723839080887,3.80981,2624.8,2624.3,2.88083355]
[1723839081085,3.80981,2624.8,2624.7,0.10179091]
[1723839081580,3.80981,2624.8,2624.3,2.88083355]
[1723839081759,3.80981,2624.8,2624.7,0.10179091]
[1723839081960,3.80981,2624.8,2624.3,2.3921]
[1723839082257,7.61962,2624.8,2624.7,0.10179091]
[1723839082459,7.61962,2624.8,2624.3,2.3921]
[1723839082460,3.80981,2624.8,2624.3,2.3921]
[1723839082667,3.81019,2624.6,2624.3,2.3921]
[1723839084450,3.80997,2624.7,2624.3,2.3921]
[1723839084651,3.53276344,2625.1,2624.3,7.17377]
[1723839084652,3.80955,2625.0,2624.3,7.17377]
[1723839084963,3.80952,2625.0,2624.3,7.17377]
[1723839085167,3.80952,2625.0,2624.4,4.527747]
[1723839085470,3.80952,2625.0,2624.4,0.717377]
[1723839085990,3.80952,2625.0,2624.4,4.527687]
[1723839086171,3.0,2625.1,2624.4,4.527677]
[1723839086492,6.8094,2625.1,2624.5,0.7890987]
[1723839087578,6.8094,2625.1,2624.3,3.36331]
[1723839087579,3.80952,2625.0,2624.3,3.36331]
[1723839087897,3.8099,2624.8,2624.6,0.10157587]
[1723839088076,3.8099,2624.8,2624.3,2.3921]
[1723839088282,3.0,2625.1,2624.7,0.10145861]
[1723839088470,6.80945,2625.1,2624.7,2.4215]
[1723839088669,6.80945,2625.1,2624.8,0.10134135]
[1723839088865,3.0,2625.1,2624.8,0.10134135]
[1723839089071,3.0,2625.1,2624.7,2.4215]
[1723839089270,3.0,2625.1,2624.9,0.1012241]
[1723839089533,3.0,2625.1,2624.8,0.10134135]
[1723839089811,3.0,2625.1,2624.9,0.1012241]
[1723839090024,3.0,2625.1,2624.7,2.4215]
[1723839090172,3.0,2625.1,2625.0,0.10110685]
[1723839090512,3.80917,2625.3,2624.7,2.4215]
[1723839090715,3.80897,2625.4,2625.1,2.4215]
[1723839090932,1.99042217,2625.9,2625.1,6.23084]
[1723839091154,3.80821,2625.9,2625.2,4.15215226]
[1723839091298,3.80821,2625.9,2625.3,2.4215]
[1723839091827,3.80808,2626.0,2625.4,0.1005946]
[1723839091981,7.61629,2626.0,2625.4,0.1005946]
[1723839092407,3.80824,2625.9,2625.4,0.1005946]
[1723839093018,3.80839,2625.8,2625.4,0.1005946]
[1723839093525,3.80823,2625.9,2625.4,0.1005946]
[1723839093707,3.80823,2625.9,2625.4,1.56589564]
[1723839094693,3.80816,2626.0,2625.4,1.56589564]
[1723839094886,7.61633,2626.0,2625.4,1.56589564]
[1723839095086,7.61633,2626.0,2625.5,0.74322303]
[1723839095433,7.61633,2626.0,2625.4,1.56589564]
[1723839095434,3.80837,2625.8,2625.6,0.10028281]
[1723839095584,3.80816,2626.0,2625.6,0.10028281]
[1723839095944,3.80788,2626.2,2625.7,2.4136]
[1723839096231,7.61574,2626.2,2625.7,2.51376563]
[1723839096444,3.80836,2625.8,2625.7,0.10016563]
[1723839096735,3.80836,2625.8,2625.4,2.4136]
[1723839097086,3.80836,2625.8,2625.5,0.1003938]
[1723839098441,3.80824,2625.9,2625.5,0.1003938]
[1723839098592,3.80816,2626.0,2625.5,0.1003938]
[1723839098933,3.80816,2626.0,2625.5,0.35179318]
[1723839099086,3.80792,2626.1,2625.6,2.4136]
[1723839099291,7.61598,2626.1,2625.6,2.4136]
[1723839099531,3.80808,2626.0,2625.7,0.10015944]
[1723839100388,7.61598,2626.1,2625.7,0.10015944]
[1723839100632,3.80792,2626.1,2625.7,0.10015944]
[1723839101509,1.24496413,2626.4,2625.7,0.10015944]
[1723839101510,7.61488,2626.5,2625.8,6.18779]
[1723839101821,2.4499903,2627.0,2626.0,3.80793]
[1723839102153,7.61427,2626.7,2626.0,11.12793]
[1723839102435,7.61427,2626.7,2626.1,0.09969081]
[1723839102588,3.80721,2626.6,2626.1,1.53227335]
[1723839103234,3.80713,2626.7,2626.1,1.53227335]
[1723839103441,3.80723,2626.6,2626.1,1.53227335]
[1723839104925,3.80723,2626.6,2626.2,2.3795]
[1723839105234,3.80723,2626.6,2626.3,0.09945655]
[1723839105587,3.80723,2626.6,2626.2,2.3795]
[1723839105792,3.80723,2626.6,2626.4,0.09933943]
[1723839105994,3.80735,2626.5,2626.3,0.09945655]
[1723839106193,3.80735,2626.5,2626.2,2.3795]
[1723839107036,3.8072,2626.6,2626.2,2.3795]
[1723839107233,3.8072,2626.6,2626.2,3.34945]
[1723839114513,3.8072,2626.6,2626.2,2.3795]
[1723839115028,7.61452,2626.6,2626.2,2.3795]
[1723839115537,3.8072,2626.6,2626.2,2.3795]
[1723839117914,3.8072,2626.6,2626.3,0.09942918]
[1723839118224,3.8072,2626.6,2626.2,2.3795]
[1723839118553,7.61448,2626.6,2626.3,0.09942918]
[1723839118752,3.80737,2626.5,2626.2,2.3795]
[1723839118927,3.80754,2626.4,2626.2,2.3795]
[1723839119249,3.80754,2626.4,2626.3,0.09942918]
[1723839119750,3.80754,2626.4,2626.2,2.3795]
[1723839119917,3.80754,2626.4,2626.3,0.09942918]
[1723839120134,3.80754,2626.4,2626.2,2.3795]
[1723839120349,3.80754,2626.4,2626.3,0.09942918]
[1723839120514,7.61484,2626.5,2626.2,2.3795]
[1723839120852,3.80752,2626.4,2626.3,0.09942918]
[1723839121228,3.80752,2626.4,2626.2,2.3795]
[1723839121424,3.80737,2626.5,2626.3,0.09942918]
[1723839121963,1.98444065,2627.6,2626.9,3.80676]
[1723839122145,3.80515,2628.1,2627.3,7.7231]
[1723839122348,3.80481,2628.3,2627.6,6.4065]
[1723839122653,3.8045,2628.5,2627.8,3.80543]
[1723839122957,3.80424,2628.7,2627.9,2.4895]
[1723839123252,3.80446,2628.5,2627.9,2.58698215]
[1723839123413,7.60901,2628.5,2627.9,2.58698215]
[1723839123615,3.80446,2628.5,2627.9,2.58698215]
[1723839124355,3.80497,2628.2,2627.9,0.09748215]
[1723839124721,3.80497,2628.2,2627.7,2.3326]
[1723839124922,3.80497,2628.2,2627.8,0.09759914]
[1723839125172,7.60995,2628.2,2627.7,2.3326]
[1723839125497,3.80497,2628.2,2627.9,0.09748215]
[1723839125780,3.80497,2628.2,2628.0,0.09736518]
[1723839126002,3.80503,2628.1,2628.0,0.09736518]
[1723839126127,3.80503,2628.1,2627.7,2.3326]
[1723839126444,3.80503,2628.1,2627.8,0.09759914]
[1723839126773,3.80503,2628.1,2627.7,2.3326]
[1723839126980,3.80519,2628.0,2627.9,0.09748215]
[1723839127270,3.80519,2628.0,2627.8,0.09759914]
[1723839127432,3.80519,2628.0,2627.9,0.09748215]
[1723839127833,3.80519,2628.0,2627.7,2.3326]
[1723839128031,3.80519,2628.0,2627.9,0.09748215]
[1723839128272,3.80519,2628.0,2627.8,0.09759914]
[1723839128441,3.80519,2628.0,2627.9,0.09748215]
[1723839128902,3.80519,2628.0,2627.7,2.56586]
[1723839129080,3.80519,2628.0,2627.9,0.09748215]
[1723839129232,3.80519,2628.0,2627.8,0.09759914]
[1723839129433,3.80519,2628.0,2627.9,0.09748215]
[1723839130437,3.80519,2628.0,2627.7,2.3326]
[1723839130633,3.80519,2628.0,2627.9,0.09748215]
[1723839131152,3.80519,2628.0,2627.7,2.3326]
[1723839131402,3.80519,2628.0,2627.8,0.09759914]
[1723839131873,3.80483,2628.3,2627.7,2.3326]
[1723839132076,3.80504,2628.1,2627.9,0.09748215]
[1723839132851,3.8045,2628.5,2628.0,2.3231]
[1723839133052,3.8037,2629.1,2628.3,3.80463]
[1723839133347,7.6068,2629.3,2628.5,3.80442]
[1723839133548,0.06623001,2629.5,2628.7,2.4762]
[1723839133549,3.86931001,2629.5,2628.7,2.4762]
[1723839133775,7.67242001,2629.5,2628.8,0.09630031]
[1723839134092,4.570412,2629.4,2628.8,0.09630031]
[1723839134788,3.80345,2629.2,2628.8,0.09630031]
[1723839134988,3.80374,2629.0,2628.8,0.09630031]
[1723839135190,3.917,2629.1,2628.0,2.4488]
[1723839135350,3.80457,2628.5,2628.0,2.4488]
[1723839135549,3.80457,2628.5,2628.1,0.09380235]
[1723839136431,3.80453,2628.5,2628.1,0.09380235]
[1723839136594,3.80476,2628.3,2628.1,0.09380235]
[1723839136895,3.80392,2628.9,2628.1,0.09380235]
[1723839136896,7.60976,2628.2,2628.1,0.09380235]
[1723839137188,7.60976,2628.2,2627.7,2.4488]
[1723839137189,3.80524,2628.0,2627.7,2.4488]
[1723839138099,7.61051,2628.0,2627.7,2.4488]
[1723839138307,7.61055,2628.0,2627.7,2.4488]
[1723839138611,3.80524,2628.0,2627.7,2.4488]
[1723839138981,3.80495,2628.2,2627.7,2.4488]
[1723839138982,7.60997,2628.2,2627.7,2.4488]
[1723839139176,3.80495,2628.2,2627.7,2.4488]
[1723839139476,3.80504,2628.1,2627.7,2.4488]
[1723839140078,3.80467,2628.4,2627.7,2.4488]
[1723839140274,3.80467,2628.4,2627.8,0.24488]
[1723839141107,3.80467,2628.4,2627.8,4.05032]
[1723839141465,3.80467,2628.4,2627.8,0.24488]
[1723839141667,7.989857,2628.4,2627.7,2.4488]
[1723839142104,4.185137,2628.4,2627.7,6.25439]
[1723839142662,3.80467,2628.4,2627.7,10.05982]
[1723839142880,3.80467,2628.4,2627.7,6.25429]
[1723839143948,3.8044,2628.6,2627.4,7.32]
[1723839143949,3.8044,2628.6,2628.0,2.4505]
[1723839144408,3.8044,2628.6,2628.1,0.09380235]
[1723839144769,3.80452,2628.5,2628.1,0.09380235]
[1723839144972,3.80467,2628.4,2628.1,0.09380235]
[1723839145312,4.184972,2628.5,2628.1,0.09380235]
[1723839145313,3.80488,2628.2,2628.1,0.09380235]
[1723839145469,13.81804,2628.2,2628.1,0.09380235]
[1723839145810,13.81804,2628.2,2627.1,2.4505]
[1723839145811,3.80599,2627.5,2627.1,2.4505]
[1723839146015,3.80621,2627.3,2627.1,2.4505]
[1723839146870,3.80604,2627.4,2627.1,2.4505]
[1723839147301,3.80604,2627.4,2627.2,0.09485536]
[1723839147682,3.80588,2627.6,2627.2,0.09485536]
[1723839147877,3.80607,2627.4,2627.2,0.09485536]
[1723839148519,3.80592,2627.5,2627.2,0.09485536]
[1723839150727,3.80612,2627.4,2627.2,0.09485536]
[1723839151140,3.80592,2627.5,2627.2,0.09485536]
[1723839154825,3.80607,2627.4,2627.2,0.09485536]
[1723839157341,3.8059,2627.5,2627.2,0.09485536]
[1723839158042,3.80577,2627.6,2627.2,35.09485536]
[1723839158815,3.80577,2627.6,2627.2,0.09485536]
[1723839159650,3.80561,2627.7,2627.2,3.90430661]
[1723839159822,3.80561,2627.7,2627.3,2.3677]
[1723839160033,3.80561,2627.7,2627.4,0.09477014]
[1723839160213,3.80577,2627.6,2627.4,0.09477014]
[1723839161758,3.80589,2627.5,2627.4,0.09477014]
[1723839162107,3.80589,2627.5,2627.1,35.0]
[1723839162311,3.80589,2627.5,2627.4,0.09476357]
[1723839162544,3.80589,2627.5,2627.0,2.3677]
[1723839162786,3.80589,2627.5,2627.4,0.09476357]
[1723839163272,3.80589,2627.5,2627.0,37.3677]
[1723839163488,3.80589,2627.5,2627.1,0.09511468]
[1723839166929,7.61135,2627.7,2627.1,0.09511468]
[1723839167094,3.80563,2627.7,2627.1,3.90158468]
[1723839167279,3.80563,2627.7,2627.2,3.80945125]
[1723839167827,3.87166755,2627.9,2627.3,0.0948806]
[1723839168029,3.80542,2627.9,2627.4,2.4122]
[1723839168388,3.80542,2627.9,2627.5,0.09464655]
[1723839168701,7.61084,2627.9,2627.5,0.09464655]
[1723839169581,3.80517,2628.0,2627.5,0.09464655]
[1723839169787,0.06625544,2628.2,2627.6,2.3086]
[1723839169986,3.87123544,2628.2,2627.6,2.3086]
[1723839170257,1.99119207,2628.5,2627.9,3.80524]
[1723839170533,1.99119207,2628.5,2627.4,11.12599]
[1723839170534,3.80417,2628.7,2628.0,6.20775103]
[1723839170733,3.80417,2628.7,2628.1,0.6207751]
[1723839170884,3.80417,2628.7,2628.0,6.20774103]
[1723839171085,3.80417,2628.7,2628.2,0.09381107]
[1723839171283,3.80417,2628.7,2628.0,6.11369]
[1723839171506,3.80417,2628.7,2628.1,0.09392803]
[1723839172136,7.60846,2628.7,2628.1,0.09392803]
[1723839172308,3.80402,2628.8,2628.1,1.44668983]
[1723839172513,3.80374,2629.0,2628.3,2.3086]
[1723839172830,3.80357,2629.2,2628.6,2.3086]
[1723839173124,3.80358,2629.1,2628.7,0.09322642]
[1723839173433,4.183937,2629.1,2628.7,0.09322642]
[1723839173630,0.380357,2629.1,2628.7,0.09322642]
[1723839173931,3.80383,2629.0,2628.7,0.09322642]
[1723839174085,3.80401,2628.8,2628.7,0.09322642]
[1723839174283,3.80401,2628.8,2628.3,35.0]
[1723839174524,3.80401,2628.8,2628.4,0.09357719]
[1723839175380,3.80387,2628.9,2628.4,0.09357719]
[1723839175891,1.19641664,2629.2,2628.7,3.80415]
[1723839176109,3.80337,2629.3,2628.8,0.09310952]
[1723839176598,3.80337,2629.3,2628.7,3.80415]
[1723839176783,3.80337,2629.3,2628.9,0.09299263]
[1723839176987,4.564017,2629.3,2628.8,0.09310952]
[1723839177182,3.80309,2629.5,2629.0,0.09287574]
[1723839177430,3.80315,2629.4,2629.0,0.09287574]
[1723839178223,3.80299,2629.6,2629.0,0.09287574]
[1723839178420,7.90741462,2629.6,2629.0,0.09287574]
[1723839178594,3.80301,2629.5,2629.0,0.09287574]
[1723839179489,4.10442462,2629.6,2629.0,3.89657574]
[1723839179490,1.10442462,2629.6,2629.0,3.89657574]
[1723839179698,6.26601058,2630.1,2629.2,2.3711]
[1723839179904,3.86841058,2630.1,2629.4,3.80314]
[1723839180122,2.3976,2630.3,2629.6,3.80285]
[1723839180123,3.80198,2630.3,2629.6,3.80285]
[1723839180332,4.562342,2630.3,2629.6,3.80278]
[1723839180541,0.760362,2630.3,2629.7,0.09197887]
[1723839180743,3.80156,2630.5,2629.7,0.09197887]
[1723839180744,7.6032,2630.5,2629.8,3.80252]
[1723839180924,3.80179,2630.4,2629.7,3.89461887]
[1723839181092,4.80187,2630.4,2629.9,0.0917111]
[1723839181292,4.80187,2630.4,2629.7,3.80264]
[1723839181608,4.80187,2630.4,2629.7,38.80264]
[1723839181761,4.80187,2630.4,2629.8,0.0918279]
[1723839182630,1.00008,2630.4,2629.8,0.0918279]
[1723839182823,4.80182,2630.4,2629.8,0.0918279]
[1723839183019,4.80182,2630.4,2629.9,2.3711]
[1723839183020,1.00008,2630.4,2629.9,2.3711]
[1723839183340,1.00008,2630.4,2630.0,0.0915943]
[1723839183341,3.80175,2630.4,2630.0,0.0915943]
[1723839183548,3.80156,2630.5,2630.0,0.0915943]
[1723839183771,3.80142,2630.6,2630.0,0.0915943]
[1723839183935,0.760275,2630.5,2630.0,0.0915943]
[1723839184326,3.80175,2630.4,2630.0,0.0915943]
[1723839184557,3.80161,2630.5,2630.0,0.0915943]
[1723839184820,3.80136,2630.7,2630.0,0.0915943]
[1723839185151,3.80136,2630.7,2630.0,3.8938143]
[1723839185152,4.481406,2630.7,2630.0,3.8938143]
[1723839185318,4.481406,2630.7,2630.0,0.0915943]
[1723839185521,4.481406,2630.7,2630.0,3.8937843]
[1723839185874,4.481406,2630.7,2630.0,0.0915943]
[1723839186161,4.2496606,2630.6,2630.0,0.0915943]
[1723839186937,3.80174,2630.4,2630.0,0.0915943]
[1723839190378,3.80193,2630.3,2630.0,0.0915943]
[1723839190523,3.80193,2630.3,2629.7,2.3529]
[1723839190724,3.80174,2630.4,2630.1,0.09134588]
[1723839190924,3.80174,2630.4,2629.7,44.95824]
[1723839191162,3.80174,2630.4,2630.2,0.0912291]
[1723839191474,3.80156,2630.5,2630.3,0.09111233]
[1723839191653,3.80149,2630.6,2629.9,3.80237]
[1723839191972,3.80149,2630.6,2630.0,2.44436267]
[1723839192525,7.60304,2630.6,2630.0,2.44436267]
[1723839193035,3.80156,2630.5,2630.0,2.44436267]
[1723839193424,3.80149,2630.6,2630.0,2.44436267]
[1723839193624,4.788551,2630.6,2630.0,0.09146267]
[1723839193865,3.80184,2630.3,2630.0,0.09146267]
[1723839194036,3.80184,2630.3,2629.7,38.8027]
[1723839194366,3.80184,2630.3,2629.8,0.09169627]
[1723839194569,3.80156,2630.5,2629.8,0.09169627]
[1723839194736,3.80171,2630.4,2629.8,3.80945125]
[1723839194937,3.80156,2630.5,2629.9,0.09157946]
[1723839195160,3.80156,2630.5,2630.0,2.3529]
[1723839195723,3.80156,2630.5,2630.1,0.09134588]
[1723839195724,3.80174,2630.4,2630.1,0.09134588]
[1723839196636,4.181716,2630.5,2630.1,0.09134588]
[1723839196934,4.181716,2630.5,2630.2,0.0912291]
[1723839197150,3.80156,2630.5,2629.8,3.80245]
[1723839197355,3.80156,2630.5,2630.3,0.09111233]
[1723839197673,3.80135,2630.7,2629.9,6.15531]
[1723839197674,3.80141,2630.6,2629.9,6.15531]
[1723839197963,3.80135,2630.7,2629.9,7.151108]
[1723839198270,3.80155,2630.5,2630.0,0.09146267]
[1723839198824,3.0,2630.9,2630.1,2.2637]
[1723839198825,6.80105,2630.9,2630.1,2.2637]
[1723839199163,3.80167,2630.5,2630.2,0.0912291]
[1723839199347,2.50447028,2631.1,2630.2,0.0912291]
[1723839199348,3.80184,2630.4,2630.2,0.0912291]
[1723839199551,3.80184,2630.3,2630.2,0.0912291]
[1723839199735,3.80156,2630.5,2630.2,0.0912291]
[1723839201153,3.8015,2630.6,2630.2,0.0912291]
[1723839201354,3.80163,2630.5,2630.2,0.33432499]
[1723839201568,3.80171,2630.4,2630.2,0.33432499]
[1723839201799,3.80171,2630.4,2630.2,0.0912291]
[1723839202102,3.80184,2630.3,2630.2,0.0912291]
[1723839202852,3.80171,2630.4,2630.2,0.0912291]
[1723839203169,3.80184,2630.3,2630.2,0.0912291]
[1723839204096,8.364035,2630.3,2630.2,0.0912291]
[1723839204265,3.80096,2631.0,2630.2,2.479]
[1723839204702,3.80065,2631.2,2630.3,0.0911018]
[1723839204703,2.4989,2631.2,2630.3,0.0911018]
[1723839204912,7.6034,2630.4,2630.3,0.0911018]
[1723839205076,6.30034,2630.6,2628.9,2.479]
[1723839205259,3.80187,2630.3,2629.1,2.479]
[1723839205454,3.80212,2630.2,2629.4,3.80307]
[1723839205657,3.80222,2630.1,2629.5,2.479]
[1723839206014,3.902,2630.5,2629.5,2.56497896]
[1723839206218,7.6057,2629.6,2629.5,0.08597896]
[1723839206737,6.20875,2629.8,2628.6,3.8042]
[1723839206738,3.80322,2629.4,2628.6,3.8042]
[1723839206868,2.4061,2629.8,2628.6,3.8042]
[1723839206869,3.80313,2629.5,2628.7,0.08692304]
[1723839207070,3.80314,2629.4,2628.7,0.71990534]
[1723839207310,3.80354,2629.2,2628.7,0.08692304]
[1723839207458,3.80354,2629.2,2628.5,6.24305]
[1723839207659,3.80342,2629.3,2628.5,6.24305]
[1723839207660,7.60684,2629.3,2628.6,1.08893326]
[1723839207858,3.80342,2629.3,2628.6,4.89323326]
[1723839208104,3.80308,2629.5,2628.7,2.2791]
[1723839208257,3.80308,2629.5,2628.8,3.80387]
[1723839208609,3.80316,2629.4,2628.8,0.08394444]
[1723839208759,3.80345,2629.2,2628.8,0.70908771]
[1723839209475,3.80325,2629.4,2628.8,0.70908771]
[1723839209672,3.80324,2629.4,2628.8,0.70908771]
[1723839209985,3.80331,2629.3,2628.9,0.29881877]
[1723839210186,2.4061,2629.8,2628.9,0.29881877]
[1723839210412,2.4061,2629.8,2629.0,0.08371301]
[1723839210559,3.80315,2629.4,2629.0,0.08371301]
[1723839210905,3.80354,2629.2,2629.0,0.08371301]
[1723839211102,3.80354,2629.2,2628.7,2.2791]
[1723839211312,3.80354,2629.2,2628.8,0.08394678]
[1723839211609,3.8032,2629.4,2628.8,0.23630468]
[1723839211814,3.8032,2629.4,2628.9,0.08382989]
[1723839212014,7.60645,2629.4,2628.9,0.08382989]
[1723839212317,3.8032,2629.4,2628.9,0.08382989]
[1723839212807,3.80294,2629.6,2629.0,2.3785]
[1723839213013,3.80314,2629.5,2629.0,2.3785]
[1723839213221,3.80331,2629.3,2629.1,0.08359613]
[1723839213791,3.80331,2629.3,2628.6,2.3785]
[1723839213991,7.60662,2629.3,2629.2,0.08347926]
[1723839214223,3.80358,2629.2,2628.6,2.3785]
[1723839214522,3.8037,2629.1,2628.7,0.96985]
[1723839214688,7.6074,2629.1,2628.7,0.96985]
[1723839214894,3.80394,2628.9,2628.6,2.3785]
[1723839215097,3.80433,2628.6,2628.3,2.3779]
[1723839215308,3.80424,2628.7,2628.3,2.3779]
[1723839215675,3.80403,2628.8,2628.3,2.3779]
[1723839216026,3.80425,2628.7,2628.3,2.3779]
[1723839216319,3.80381,2629.0,2628.3,2.61569]
[1723839216534,3.80387,2628.9,2628.3,2.61569]
[1723839216678,3.80387,2628.9,2628.4,1.022527]
[1723839217318,3.80349,2629.2,2628.4,1.022527]
[1723839217502,3.80372,2629.0,2628.4,3.80455]
[1723839217704,3.80349,2629.2,2628.4,3.80455]
[1723839217907,3.80349,2629.2,2628.5,1.350245]
[1723839218777,3.80361,2629.1,2628.5,1.350245]
[1723839219366,3.80376,2629.0,2628.5,1.350245]
[1723839219567,3.80403,2628.8,2628.6,0.08418294]
[1723839220053,3.80403,2628.8,2628.3,9.6979]
[1723839220217,3.80403,2628.8,2628.7,0.08411893]
[1723839220706,3.80403,2628.8,2628.4,0.96979]
[1723839220914,3.80424,2628.7,2628.5,0.08435276]
[1723839221133,3.8043,2628.6,2628.5,0.08435276]
[1723839221337,3.8043,2628.6,2628.1,2.3779]
[1723839221518,7.60872,2628.6,2628.2,0.32249358]
[1723839221720,3.80452,2628.5,2628.2,0.32249358]
[1723839221925,3.8043,2628.6,2628.2,0.32249358]
[1723839223544,7.60826,2628.8,2628.2,0.32249358]
[1723839223927,3.80418,2628.7,2628.2,0.32249358]
[1723839224133,3.80458,2628.5,2628.2,0.08470358]
[1723839224360,3.80506,2628.1,2627.8,2.3351]
[1723839224661,3.80506,2628.1,2627.9,0.08505447]
[1723839224662,7.61019,2628.1,2627.9,0.08505447]
[1723839224814,3.80517,2628.0,2627.9,0.08505447]
[1723839225415,3.80517,2628.0,2627.5,2.3922]
[1723839225617,3.80517,2628.0,2627.9,0.08505447]
[1723839225861,3.80517,2628.0,2627.6,0.97122]
[1723839226279,3.80517,2628.0,2627.7,0.08528845]
[1723839226559,3.80541,2627.9,2627.7,0.08528845]
[1723839226817,3.80518,2628.0,2627.5,2.3922]
[1723839226818,3.80546,2627.8,2627.5,2.3922]
[1723839226974,3.8059,2627.5,2627.0,7.32]
[1723839227185,3.80605,2627.4,2627.1,0.380655]
[1723839227483,3.80554,2627.8,2627.1,0.380655]
[1723839227642,3.80554,2627.8,2627.2,2.3451]
[1723839228043,7.6111,2627.8,2627.2,2.3451]
[1723839228379,3.80569,2627.7,2627.2,2.3451]
[1723839229151,3.80554,2627.8,2627.2,2.3451]
[1723839229325,3.80583,2627.6,2627.2,2.3451]
[1723839229526,3.80554,2627.8,2627.2,2.57961]
[1723839230053,3.80563,2627.7,2627.2,2.57961]
[1723839230261,2.4301,2628.1,2626.7,9.8006]
[1723839230458,7.6125,2627.3,2626.8,4.28006]
[1723839230766,3.80619,2627.3,2626.8,4.28006]
[1723839230977,3.80634,2627.2,2626.8,4.28006]
[1723839231875,3.80657,2627.1,2626.8,1.28006]
[1723839232170,3.80684,2626.9,2626.4,9.8006]
[1723839232688,3.80657,2627.1,2626.5,2.4806]
[1723839232967,3.80657,2627.1,2626.6,1.360799]
[1723839233173,2.4301,2627.7,2626.6,1.360799]
[1723839233356,3.80687,2626.9,2626.5,2.4806]
[1723839233541,3.80706,2626.7,2626.5,2.4806]
[1723839233939,3.80687,2626.9,2626.5,2.4806]
[1723839234166,3.80653,2627.1,2626.5,2.4806]
[1723839234380,3.80666,2627.0,2626.6,0.24806]
[1723839234583,3.80653,2627.1,2626.6,0.33480421]
[1723839235275,3.80627,2627.3,2626.6,4.14191421]
[1723839235476,3.80627,2627.3,2626.7,0.66225142]
[1723839235477,3.80622,2627.3,2626.7,0.66225142]
[1723839235663,6.23607,2627.5,2626.7,0.66225142]
[1723839235995,3.8062,2627.3,2626.8,0.08651004]
[1723839236291,3.8062,2627.3,2626.8,0.56690319]
[1723839236491,3.8062,2627.3,2626.8,0.48039315]
[1723839236645,3.8062,2627.3,2626.9,0.08639297]
[1723839237497,3.8062,2627.3,2626.9,2.56699297]
[1723839238245,7.61199,2627.5,2626.9,2.56699297]
[1723839238565,3.80604,2627.4,2626.9,3.25243458]
[1723839238970,6.23581,2627.7,2626.9,7.05915458]
[1723839239269,3.80511,2628.1,2627.2,2.384]
[1723839239457,7.61081,2627.9,2627.2,6.19032]
[1723839239645,7.61081,2627.9,2627.3,0.32431914]
[1723839239646,7.61078,2627.9,2627.3,0.32431914]
[1723839239946,3.80511,2628.1,2627.3,4.13039914]
[1723839240151,3.80521,2628.0,2627.5,2.384]
[1723839240359,3.80511,2628.1,2627.6,0.08556808]
[1723839240360,3.80535,2627.9,2627.6,0.08556808]
[1723839240790,7.61027,2628.1,2627.6,0.08556808]
[1723839240985,3.80512,2628.1,2627.6,0.08556808]
[1723839241259,3.80511,2628.1,2627.6,0.43573148]
[1723839241578,3.80531,2628.0,2627.6,0.43573148]
[1723839241999,9.06722,2628.5,2627.6,0.43573148]
[1723839242000,3.80483,2628.3,2627.6,0.43573148]
[1723839242206,5.2627,2628.5,2627.7,0.28197315]
[1723839242207,3.80493,2628.2,2627.7,0.28197315]
[1723839242370,3.87097073,2628.4,2627.7,4.08753315]
[1723839242578,3.87097073,2628.4,2627.9,2.384]
[1723839242579,3.80474,2628.3,2627.9,2.384]
[1723839242982,3.80474,2628.3,2628.0,0.08510013]
[1723839243415,3.8049,2628.2,2628.0,0.08510013]
[1723839243919,3.80474,2628.3,2628.0,0.08510013]
[1723839244097,3.80499,2628.2,2628.0,0.08510013]
[1723839244490,3.80503,2628.1,2628.0,0.08510013]
[1723839245117,8.371037,2628.1,2628.0,0.08510013]
[1723839245331,7.61006,2628.1,2628.0,0.08510013]
[1723839245478,7.60968,2628.3,2627.5,6.1278]
[1723839245700,3.80497,2628.2,2627.6,0.61278]
[1723839246010,3.80503,2628.1,2627.7,0.08543561]
[1723839246623,3.80497,2628.2,2627.7,0.08543561]
[1723839246942,3.80497,2628.2,2627.7,0.38745717]
[1723839247644,3.80469,2628.4,2627.8,2.2811]
[1723839247808,3.80474,2628.3,2627.8,2.2811]
[1723839248015,3.80474,2628.3,2627.9,0.08520164]
[1723839248211,3.80474,2628.3,2627.9,0.73259396]
[1723839248401,7.60928,2628.4,2628.0,2.2811]
[1723839248736,7.60928,2628.4,2628.1,0.0849677]
[1723839248737,3.8046,2628.4,2628.1,0.0849677]
[1723839248936,7.60927,2628.4,2628.1,0.0849677]
[1723839249438,7.60881,2628.6,2628.1,0.3863137]
[1723839249740,3.80467,2628.4,2628.1,0.0849677]
[1723839250448,3.80467,2628.4,2628.1,0.3863137]
[1723839251295,3.80474,2628.3,2628.1,0.0849677]
[1723839252142,3.80488,2628.2,2628.1,0.0849677]
[1723839252296,3.80488,2628.2,2627.7,7.32]
[1723839252297,3.80488,2628.2,2627.8,2.4304]
[1723839252627,3.80488,2628.2,2627.9,1.06024164]
[1723839252949,3.8048,2628.3,2627.9,1.06024164]
[1723839253441,3.8045,2628.5,2627.9,1.06024164]
[1723839253628,3.80461,2628.4,2627.9,1.06024164]
[1723839254247,3.8045,2628.5,2627.9,1.06024164]
[1723839254537,3.8045,2628.5,2628.0,3.16000716]
[1723839255045,3.8045,2628.5,2628.1,0.0849677]
[1723839255196,3.80425,2628.7,2628.1,0.0849677]
[1723839255397,6.18632,2628.9,2628.1,0.0849677]
[1723839255602,3.80474,2628.3,2628.1,0.0849677]
[1723839257553,7.60914,2628.5,2628.1,0.0849677]